[Event "*** Titled Tuesday Blitz"]
[Site "Chess.com"]
[Date "2020.04.07"]
[Round "1"]
[White "chessintuit"]
[Black "northridgehawk"]
[Result "0-1"]
[WhiteElo "2601"]
[BlackElo "2298"]
[TimeControl "180+1"]
[EndTime "13:06:21 PDT"]
[Termination "northridgehawk won by resignation"]

1. e4 {[%clk 0:03:00.9]} 1... e5 {[%clk 0:02:59.4]} 2. Nf3 {[%clk 0:03:00.4]}
2... Nc6 {[%clk 0:02:59.4]} 3. Bb5 {[%clk 0:03:00.5]} 3... a6 {[%clk 0:02:59.1]}
4. Ba4 {[%clk 0:03:00.4]} 4... Nf6 {[%clk 0:02:59.8]} 5. d4 {[%clk 0:03:00.4]}
5... b5 {[%clk 0:02:58.5]} 6. Bb3 {[%clk 0:02:59]} 6... exd4 {[%clk 0:02:59.4]}
7. O-O {[%clk 0:02:57]} 7... Nxe4 {[%clk 0:02:47.7]} 8. Re1 {[%clk 0:02:56.1]}
8... d5 {[%clk 0:02:47.5]} 9. Nc3 {[%clk 0:02:56.2]} 9... Be6 {[%clk 0:02:31.1]}
10. Nxe4 {[%clk 0:02:36.5]} 10... dxe4 {[%clk 0:02:29.4]} 11. Rxe4 {[%clk
0:02:37.4]} 11... Be7 {[%clk 0:02:22.4]} 12. Bxe6 {[%clk 0:02:30.6]} 12... fxe6
{[%clk 0:02:22.1]} 13. Rxe6 {[%clk 0:02:31.5]} 13... Qd7 {[%clk 0:02:15.3]} 14.
Qe2 {[%clk 0:02:31.5]} 14... O-O-O {[%clk 0:02:14.5]} 15. Qe4 {[%clk 0:02:30]}
15... Bd6 {[%clk 0:02:10.3]} 16. Bg5 {[%clk 0:01:49.9]} 16... Rde8 {[%clk
0:02:10.2]} 17. Rxe8+ {[%clk 0:01:45.5]} 17... Rxe8 {[%clk 0:02:10.1]} 18. Qd3
{[%clk 0:01:45.9]} 18... h6 {[%clk 0:02:09.3]} 19. Bh4 {[%clk 0:01:45.1]} 19...
g5 {[%clk 0:02:08.2]} 20. Bg3 {[%clk 0:01:45.3]} 20... Bxg3 {[%clk 0:02:08.1]}
21. hxg3 {[%clk 0:01:44.7]} 21... Kb7 {[%clk 0:02:00.7]} 22. c3 {[%clk
0:01:38.9]} 22... Rd8 {[%clk 0:01:39.7]} 23. cxd4 {[%clk 0:01:13.8]} 23... Nxd4
{[%clk 0:01:38]} 24. Kh2 {[%clk 0:00:53.8]} 24... Nxf3+ {[%clk 0:01:14.6]} 25.
Qxf3+ {[%clk 0:00:54.7]} 25... Qc6 {[%clk 0:01:15.5]} 26. Qe3 {[%clk 0:00:54.6]}
26... Re8 {[%clk 0:01:14.4]} 27. Qd2 {[%clk 0:00:52.7]} 27... Re6 {[%clk
0:01:11.1]} 28. Rc1 {[%clk 0:00:52.2]} 28... Qd6 {[%clk 0:01:11]} 29. Qc3 {[%clk
0:00:51.3]} 29... h5 {[%clk 0:01:10.1]} 30. Qf3+ {[%clk 0:00:51.1]} 30... c6
{[%clk 0:01:07.3]} 31. Qf7+ {[%clk 0:00:49.9]} 31... Kb6 {[%clk 0:01:05]} 32.
Qf3 {[%clk 0:00:34.3]} 32... h4 {[%clk 0:01:04]} 33. Rd1 {[%clk 0:00:27.5]}
33... hxg3+ {[%clk 0:01:02.5]} 34. fxg3 {[%clk 0:00:28.4]} 34... Rh6+ {[%clk
0:01:01.4]} 35. Kg1 {[%clk 0:00:29]} 35... Qc5+ {[%clk 0:01:01.6]} 36. Qf2
{[%clk 0:00:29.7]} 36... Rh1+ {[%clk 0:01:00]} 37. Kxh1 {[%clk 0:00:29.1]} 37...
Qxf2 {[%clk 0:01:00.9]} 38. Kh2 {[%clk 0:00:25.2]} 38... Qxb2 {[%clk 0:00:58.2]}
0-1

[Event "*** Titled Tuesday Blitz"]
[Site "Chess.com"]
[Date "2020.04.07"]
[Round "1"]
[White "david_gomez"]
[Black "A-Fier"]
[Result "0-1"]
[WhiteElo "2441"]
[BlackElo "2836"]
[TimeControl "180+1"]
[EndTime "13:06:23 PDT"]
[Termination "A-Fier won by resignation"]

1. e4 {[%clk 0:02:55.1]} 1... c5 {[%clk 0:02:59.1]} 2. Nc3 {[%clk 0:02:54.2]}
2... Nc6 {[%clk 0:02:55.6]} 3. g3 {[%clk 0:02:55.1]} 3... g6 {[%clk 0:02:54.8]}
4. Bg2 {[%clk 0:02:55.3]} 4... Bg7 {[%clk 0:02:55.3]} 5. d3 {[%clk 0:02:55.6]}
5... Rb8 {[%clk 0:02:55.1]} 6. f4 {[%clk 0:02:56.1]} 6... b5 {[%clk 0:02:55.2]}
7. Nf3 {[%clk 0:02:56.7]} 7... b4 {[%clk 0:02:55.7]} 8. Ne2 {[%clk 0:02:55.5]}
8... d6 {[%clk 0:02:56.2]} 9. O-O {[%clk 0:02:53.4]} 9... e5 {[%clk 0:02:56.3]}
10. Rb1 {[%clk 0:02:52.7]} 10... Nge7 {[%clk 0:02:56.3]} 11. Be3 {[%clk
0:02:51.8]} 11... a5 {[%clk 0:02:54.7]} 12. h3 {[%clk 0:02:51.2]} 12... O-O
{[%clk 0:02:54.5]} 13. g4 {[%clk 0:02:51.4]} 13... exf4 {[%clk 0:02:53.6]} 14.
Nxf4 {[%clk 0:02:51.3]} 14... Ba6 {[%clk 0:02:41.6]} 15. h4 {[%clk 0:02:49]}
15... c4 {[%clk 0:02:41.7]} 16. h5 {[%clk 0:02:47.2]} 16... cxd3 {[%clk
0:02:41.4]} 17. cxd3 {[%clk 0:02:45.9]} 17... Ne5 {[%clk 0:02:41.7]} 18. Nxe5
{[%clk 0:02:36.6]} 18... dxe5 {[%clk 0:02:41.6]} 19. Nd5 {[%clk 0:02:36.1]}
19... Nxd5 {[%clk 0:02:37.6]} 20. exd5 {[%clk 0:02:37]} 20... Qh4 {[%clk
0:02:19]} 21. Qe2 {[%clk 0:02:12.7]} 21... f5 {[%clk 0:02:15.2]} 22. hxg6 {[%clk
0:02:07.8]} 22... hxg6 {[%clk 0:02:14.8]} 23. Bc5 {[%clk 0:02:03.8]} 23... Rf7
{[%clk 0:02:09.8]} 24. gxf5 {[%clk 0:01:58.4]} 24... gxf5 {[%clk 0:02:09.2]} 25.
Rbd1 {[%clk 0:01:54.4]} 25... e4 {[%clk 0:02:09]} 26. Qf2 {[%clk 0:01:43.2]}
26... Qxf2+ {[%clk 0:02:05.8]} 27. Rxf2 {[%clk 0:01:44.1]} 27... Bxd3 {[%clk
0:02:05.6]} 28. Bh3 {[%clk 0:01:37]} 28... Rb5 {[%clk 0:01:52.9]} 29. Bxf5
{[%clk 0:01:16.7]} 29... Rxf5 {[%clk 0:01:50.4]} 30. Rxf5 {[%clk 0:01:15.6]}
30... Rxc5 {[%clk 0:01:50.8]} 31. Kg2 {[%clk 0:01:11.4]} 31... Kh7 {[%clk
0:01:34.5]} 32. Kg3 {[%clk 0:01:09.9]} 32... Kg6 {[%clk 0:01:34.6]} 33. Kf4
{[%clk 0:00:59.3]} 33... Bh6+ {[%clk 0:01:34.4]} 34. Ke5 {[%clk 0:00:59.3]}
34... Rxd5+ {[%clk 0:01:34.2]} 35. Kxd5 {[%clk 0:01:00.2]} 35... Kxf5 {[%clk
0:01:34.6]} 36. Rh1 {[%clk 0:00:57.8]} 36... Bg5 {[%clk 0:01:33.5]} 37. Kc5
{[%clk 0:00:52.9]} 37... e3 {[%clk 0:01:33.5]} 38. Kb6 {[%clk 0:00:51.5]} 38...
Bd8+ {[%clk 0:01:33.6]} 39. Kc5 {[%clk 0:00:49.9]} 39... e2 {[%clk 0:01:34.5]}
40. Kd4 {[%clk 0:00:48.4]} 40... Ba6 {[%clk 0:01:28.1]} 41. Ke3 {[%clk
0:00:44.7]} 41... Bg5+ {[%clk 0:01:26.7]} 42. Kf2 {[%clk 0:00:37]} 42... Bd2
{[%clk 0:01:26.7]} 43. Rh5+ {[%clk 0:00:34.7]} 43... Ke4 {[%clk 0:01:25.8]} 44.
Rh1 {[%clk 0:00:29.7]} 44... Kd3 {[%clk 0:01:26.1]} 45. a3 {[%clk 0:00:28.8]}
45... b3 {[%clk 0:01:25.9]} 0-1

[Event "*** Titled Tuesday Blitz"]
[Site "Chess.com"]
[Date "2020.04.07"]
[Round "1"]
[White "CookiesAndIceCream"]
[Black "maciek_92"]
[Result "0-1"]
[WhiteElo "2360"]
[BlackElo "2709"]
[TimeControl "180+1"]
[EndTime "13:06:24 PDT"]
[Termination "maciek_92 won by resignation"]

1. e4 {[%clk 0:03:00.7]} 1... c5 {[%clk 0:02:59.6]} 2. Nf3 {[%clk 0:03:00.1]}
2... Nc6 {[%clk 0:02:57]} 3. d4 {[%clk 0:03:00.4]} 3... cxd4 {[%clk 0:02:57.9]}
4. Nxd4 {[%clk 0:03:00.7]} 4... e6 {[%clk 0:02:57.7]} 5. Nc3 {[%clk 0:03:00.1]}
5... a6 {[%clk 0:02:57.5]} 6. Be3 {[%clk 0:02:59.6]} 6... Nf6 {[%clk 0:02:50.9]}
7. Qf3 {[%clk 0:02:56.8]} 7... Qc7 {[%clk 0:02:31.6]} 8. O-O-O {[%clk
0:02:56.1]} 8... h5 {[%clk 0:02:30]} 9. Qg3 {[%clk 0:02:18.3]} 9... Qxg3 {[%clk
0:02:26.1]} 10. hxg3 {[%clk 0:02:18.1]} 10... Ng4 {[%clk 0:02:26.6]} 11. Kd2
{[%clk 0:02:16.7]} 11... Nxe3 {[%clk 0:02:25.6]} 12. fxe3 {[%clk 0:02:16.2]}
12... Ne5 {[%clk 0:02:19.6]} 13. Be2 {[%clk 0:02:14.6]} 13... g6 {[%clk
0:02:19.7]} 14. Rdf1 {[%clk 0:01:46.7]} 14... Bh6 {[%clk 0:02:10.6]} 15. b3
{[%clk 0:01:33.9]} 15... b5 {[%clk 0:02:09.6]} 16. Bf3 {[%clk 0:01:29.1]} 16...
Bb7 {[%clk 0:02:08.2]} 17. Nce2 {[%clk 0:01:27.2]} 17... Rc8 {[%clk 0:02:04.1]}
18. Rc1 {[%clk 0:01:25.9]} 18... Ke7 {[%clk 0:01:50.3]} 19. Nf4 {[%clk
0:01:22.6]} 19... Nxf3+ {[%clk 0:01:24.8]} 20. Nxf3 {[%clk 0:00:58]} 20... Bxe4
{[%clk 0:01:24]} 21. c3 {[%clk 0:00:48.9]} 21... d6 {[%clk 0:01:13.7]} 22. Ke2
{[%clk 0:00:48.4]} 22... Bg7 {[%clk 0:01:06.3]} 23. Kd2 {[%clk 0:00:46.4]} 23...
Rc5 {[%clk 0:00:58.8]} 24. Ne2 {[%clk 0:00:45.5]} 24... Rhc8 {[%clk 0:00:56.7]}
25. Rhd1 {[%clk 0:00:44]} 25... e5 {[%clk 0:00:41.4]} 26. Rf1 {[%clk 0:00:42.3]}
26... f6 {[%clk 0:00:40]} 27. Rg1 {[%clk 0:00:33.7]} 27... Bh6 {[%clk
0:00:39.1]} 28. Rgd1 {[%clk 0:00:26.3]} 28... Rd5+ {[%clk 0:00:37.1]} 29. Ke1
{[%clk 0:00:24.5]} 29... Bxe3 {[%clk 0:00:31.8]} 30. Rb1 {[%clk 0:00:23.5]} 0-1

[Event "*** Titled Tuesday Blitz"]
[Site "Chess.com"]
[Date "2020.04.07"]
[Round "1"]
[White "FabianoCaruana"]
[Black "Borsuk_Konstantin"]
[Result "1-0"]
[WhiteElo "3030"]
[BlackElo "2490"]
[TimeControl "180+1"]
[EndTime "13:06:25 PDT"]
[Termination "FabianoCaruana won on time"]

1. e4 {[%clk 0:03:00.7]} 1... e6 {[%clk 0:02:59]} 2. d4 {[%clk 0:03:00.3]} 2...
d5 {[%clk 0:02:59.2]} 3. e5 {[%clk 0:03:00.8]} 3... c5 {[%clk 0:02:58.5]} 4. c3
{[%clk 0:03:01.2]} 4... Nc6 {[%clk 0:02:58.7]} 5. Nf3 {[%clk 0:03:01.4]} 5...
Qb6 {[%clk 0:02:58.6]} 6. a3 {[%clk 0:02:59.4]} 6... c4 {[%clk 0:02:58.3]} 7.
Nbd2 {[%clk 0:02:57.9]} 7... Na5 {[%clk 0:02:58.6]} 8. g3 {[%clk 0:02:56]} 8...
Bd7 {[%clk 0:02:57.1]} 9. h4 {[%clk 0:02:56.3]} 9... f6 {[%clk 0:02:41.2]} 10.
Bh3 {[%clk 0:02:55.1]} 10... O-O-O {[%clk 0:02:36.7]} 11. O-O {[%clk 0:02:55.1]}
11... f5 {[%clk 0:02:26.2]} 12. h5 {[%clk 0:02:44.7]} 12... Be8 {[%clk
0:02:13.5]} 13. Nh4 {[%clk 0:02:43.8]} 13... Be7 {[%clk 0:02:05.3]} 14. Ng2
{[%clk 0:02:40.5]} 14... g5 {[%clk 0:01:59.7]} 15. g4 {[%clk 0:02:29.5]} 15...
f4 {[%clk 0:01:48.6]} 16. a4 {[%clk 0:02:26.9]} 16... Kb8 {[%clk 0:01:38.1]} 17.
Ne1 {[%clk 0:02:25.7]} 17... h6 {[%clk 0:01:31]} 18. Nef3 {[%clk 0:02:24.1]}
18... Bf8 {[%clk 0:01:28.4]} 19. Re1 {[%clk 0:02:23.2]} 19... Ne7 {[%clk
0:01:27.5]} 20. Bf1 {[%clk 0:02:23.2]} 20... Rc8 {[%clk 0:01:21]} 21. Qc2 {[%clk
0:02:05.5]} 21... Bf7 {[%clk 0:01:19.7]} 22. Qb1 {[%clk 0:01:17.5]} 22... Bg8
{[%clk 0:01:13.4]} 23. Be2 {[%clk 0:01:17.6]} 23... Bh7 {[%clk 0:01:13.1]} 24.
Qa2 {[%clk 0:01:18]} 24... Nb3 {[%clk 0:01:02.2]} 25. a5 {[%clk 0:01:16.3]}
25... Nxc1 {[%clk 0:00:44.9]} 26. Rexc1 {[%clk 0:01:12.8]} 26... Qc7 {[%clk
0:00:43.7]} 27. a6 {[%clk 0:01:09.5]} 27... b6 {[%clk 0:00:42.3]} 28. b3 {[%clk
0:01:09.9]} 28... cxb3 {[%clk 0:00:31.7]} 29. Qxb3 {[%clk 0:01:10.8]} 29... Nc6
{[%clk 0:00:25.3]} 30. c4 {[%clk 0:01:10.4]} 30... Nb4 {[%clk 0:00:16.8]} 31. c5
{[%clk 0:01:07.2]} 31... Nc6 {[%clk 0:00:13.3]} 32. Bb5 {[%clk 0:01:02.4]} 32...
Qd8 {[%clk 0:00:02.2]} 33. cxb6 {[%clk 0:01:00.9]} 33... Qxb6 {[%clk 0:00:01.5]}
34. Bxc6 {[%clk 0:01:01]} 1-0

[Event "*** Titled Tuesday Blitz"]
[Site "Chess.com"]
[Date "2020.04.07"]
[Round "1"]
[White "Kingsman132"]
[Black "HarutyunianTigranK"]
[Result "1-0"]
[WhiteElo "2378"]
[BlackElo "2694"]
[TimeControl "180+1"]
[EndTime "13:06:28 PDT"]
[Termination "Kingsman132 won by resignation"]

1. Nf3 {[%clk 0:02:58.4]} 1... d5 {[%clk 0:02:58.6]} 2. d4 {[%clk 0:02:59.1]}
2... Nf6 {[%clk 0:02:58.2]} 3. Bg5 {[%clk 0:02:54.9]} 3... Ne4 {[%clk
0:02:57.6]} 4. Bf4 {[%clk 0:02:52.8]} 4... e6 {[%clk 0:02:56.9]} 5. e3 {[%clk
0:02:50.9]} 5... g5 {[%clk 0:02:56.5]} 6. Bg3 {[%clk 0:02:47.4]} 6... h5 {[%clk
0:02:56.1]} 7. Qd3 {[%clk 0:02:43.4]} 7... h4 {[%clk 0:02:49.7]} 8. Be5 {[%clk
0:02:40.4]} 8... f6 {[%clk 0:02:48.3]} 9. Nbd2 {[%clk 0:02:38.5]} 9... fxe5
{[%clk 0:02:35.5]} 10. Nxe4 {[%clk 0:02:37.5]} 10... dxe4 {[%clk 0:02:35.2]} 11.
Qxe4 {[%clk 0:02:37.2]} 11... Qf6 {[%clk 0:02:16.8]} 12. dxe5 {[%clk 0:02:33.8]}
12... Qf5 {[%clk 0:02:14.8]} 13. Qxf5 {[%clk 0:02:28.9]} 13... exf5 {[%clk
0:02:14.5]} 14. Nxg5 {[%clk 0:02:29.8]} 14... Bh6 {[%clk 0:02:10.4]} 15. Nh3
{[%clk 0:02:29.1]} 15... Be6 {[%clk 0:02:07.2]} 16. f4 {[%clk 0:02:28.5]} 16...
Nd7 {[%clk 0:02:05.4]} 17. Ng1 {[%clk 0:02:25.8]} 17... O-O-O {[%clk 0:02:04.7]}
18. Nf3 {[%clk 0:02:22.3]} 18... Nc5 {[%clk 0:02:04]} 19. Nd4 {[%clk 0:02:20.1]}
19... Rhe8 {[%clk 0:01:32]} 20. O-O-O {[%clk 0:02:09.6]} 20... Ne4 {[%clk
0:01:29.4]} 21. Bb5 {[%clk 0:02:08.6]} 21... c6 {[%clk 0:01:27.1]} 22. Nxe6
{[%clk 0:02:08.6]} 22... Rxd1+ {[%clk 0:01:14.4]} 23. Rxd1 {[%clk 0:02:09.5]}
23... cxb5 {[%clk 0:01:14.4]} 24. Nd4 {[%clk 0:02:01.9]} 24... Rf8 {[%clk
0:00:57.9]} 25. Nxb5 {[%clk 0:01:59]} 25... Nf2 {[%clk 0:00:53.3]} 26. Nd6+
{[%clk 0:01:51.3]} 26... Kd7 {[%clk 0:00:37.2]} 27. Rd5 {[%clk 0:01:48.1]} 27...
Ke6 {[%clk 0:00:36.3]} 28. c4 {[%clk 0:01:46.7]} 28... Ng4 {[%clk 0:00:35.8]}
29. Nxb7 {[%clk 0:01:44]} 29... Rc8 {[%clk 0:00:22.4]} 30. Nc5+ {[%clk
0:01:37.3]} 30... Rxc5 {[%clk 0:00:21.4]} 31. Rxc5 {[%clk 0:01:35.1]} 31... Ke7
{[%clk 0:00:19.3]} 32. Rc7+ {[%clk 0:01:32.3]} 32... Kf8 {[%clk 0:00:18.3]} 33.
Rxa7 {[%clk 0:01:28.6]} 33... Nxe3 {[%clk 0:00:18.5]} 34. g3 {[%clk 0:01:25.9]}
34... h3 {[%clk 0:00:18.5]} 35. c5 {[%clk 0:01:22]} 35... Ng4 {[%clk 0:00:18.4]}
36. c6 {[%clk 0:01:19.4]} 36... Ke8 {[%clk 0:00:17.8]} 37. Ra8+ {[%clk
0:01:15.4]} 37... Ke7 {[%clk 0:00:17.8]} 38. c7 {[%clk 0:01:15.2]} 1-0

[Event "*** Titled Tuesday Blitz"]
[Site "Chess.com"]
[Date "2020.04.07"]
[Round "1"]
[White "Incognito_Knight"]
[Black "ApacheSVD"]
[Result "1-0"]
[WhiteElo "2710"]
[BlackElo "2361"]
[TimeControl "180+1"]
[EndTime "13:06:30 PDT"]
[Termination "Incognito_Knight won by resignation"]

1. d4 {[%clk 0:03:00.8]} 1... Nf6 {[%clk 0:02:56.3]} 2. c4 {[%clk 0:03:00.9]}
2... c5 {[%clk 0:02:56.3]} 3. d5 {[%clk 0:03:01.1]} 3... b5 {[%clk 0:02:54.8]}
4. Qc2 {[%clk 0:03:01.2]} 4... b4 {[%clk 0:02:53.1]} 5. e4 {[%clk 0:03:00.5]}
5... d6 {[%clk 0:02:53.5]} 6. Nf3 {[%clk 0:02:55.2]} 6... g6 {[%clk 0:02:53.8]}
7. Bd3 {[%clk 0:02:55.2]} 7... Bg7 {[%clk 0:02:53.7]} 8. h3 {[%clk 0:02:54.9]}
8... O-O {[%clk 0:02:53.9]} 9. O-O {[%clk 0:02:55.2]} 9... e5 {[%clk 0:02:45]}
10. a3 {[%clk 0:02:39]} 10... a5 {[%clk 0:02:42.7]} 11. axb4 {[%clk 0:02:33.2]}
11... cxb4 {[%clk 0:02:43.6]} 12. Be3 {[%clk 0:02:17.3]} 12... Nbd7 {[%clk
0:02:41.3]} 13. Nbd2 {[%clk 0:02:10.8]} 13... Qc7 {[%clk 0:02:40.9]} 14. Rfc1
{[%clk 0:02:01.1]} 14... Nh5 {[%clk 0:02:11.8]} 15. c5 {[%clk 0:01:53.6]} 15...
dxc5 {[%clk 0:01:57]} 16. Nb3 {[%clk 0:01:46.3]} 16... Nf4 {[%clk 0:01:43]} 17.
Nxc5 {[%clk 0:01:43.5]} 17... Nxc5 {[%clk 0:01:39.6]} 18. Bxc5 {[%clk
0:01:43.6]} 18... Rd8 {[%clk 0:01:32.2]} 19. Bb5 {[%clk 0:01:30.4]} 19... Ba6
{[%clk 0:01:24.1]} 20. Bxa6 {[%clk 0:01:16.9]} 20... Rxa6 {[%clk 0:01:24.2]} 21.
Bxb4 {[%clk 0:01:13]} 21... Qd7 {[%clk 0:00:27.4]} 22. Rxa5 {[%clk 0:00:53.8]}
22... Nxh3+ {[%clk 0:00:21.6]} 23. gxh3 {[%clk 0:00:49.4]} 23... Qxh3 {[%clk
0:00:22.5]} 24. Rxa6 {[%clk 0:00:37.7]} 24... Qxf3 {[%clk 0:00:21.6]} 25. Ra3
{[%clk 0:00:33]} 1-0

[Event "*** Titled Tuesday Blitz"]
[Site "Chess.com"]
[Date "2020.04.07"]
[Round "1"]
[White "Mostii"]
[Black "Man-Chuk"]
[Result "0-1"]
[WhiteElo "2406"]
[BlackElo "2771"]
[TimeControl "180+1"]
[EndTime "13:06:34 PDT"]
[Termination "Man-Chuk won on time"]

1. d4 {[%clk 0:03:00.9]} 1... Nf6 {[%clk 0:02:57.8]} 2. Nf3 {[%clk 0:02:59.9]}
2... e6 {[%clk 0:02:57.9]} 3. g3 {[%clk 0:02:48.5]} 3... d5 {[%clk 0:02:57.5]}
4. Bg2 {[%clk 0:02:47.2]} 4... c5 {[%clk 0:02:53.9]} 5. O-O {[%clk 0:02:46]}
5... Nc6 {[%clk 0:02:53.4]} 6. b3 {[%clk 0:02:44.8]} 6... Bd7 {[%clk 0:02:30.8]}
7. Bb2 {[%clk 0:02:43]} 7... Rc8 {[%clk 0:02:30.9]} 8. Nbd2 {[%clk 0:02:29.5]}
8... cxd4 {[%clk 0:02:22.7]} 9. Nxd4 {[%clk 0:02:25.2]} 9... Bc5 {[%clk
0:02:22.4]} 10. Nxc6 {[%clk 0:02:17.9]} 10... bxc6 {[%clk 0:02:19.6]} 11. c4
{[%clk 0:02:13.2]} 11... O-O {[%clk 0:02:15.1]} 12. e4 {[%clk 0:02:12.9]} 12...
a5 {[%clk 0:01:38.5]} 13. Bxf6 {[%clk 0:01:55.3]} 13... Qxf6 {[%clk 0:01:37]}
14. exd5 {[%clk 0:01:56.2]} 14... cxd5 {[%clk 0:01:34.9]} 15. cxd5 {[%clk
0:01:54.9]} 15... exd5 {[%clk 0:01:32.4]} 16. Bxd5 {[%clk 0:01:52.3]} 16... Bh3
{[%clk 0:01:15]} 17. Bg2 {[%clk 0:01:39.1]} 17... Bxg2 {[%clk 0:01:15]} 18. Kxg2
{[%clk 0:01:40]} 18... Rfd8 {[%clk 0:01:15.1]} 19. Ne4 {[%clk 0:01:31.3]} 19...
Qg6 {[%clk 0:00:57.7]} 20. Qf3 {[%clk 0:01:22.4]} 20... Ba3 {[%clk 0:00:57.7]}
21. Rad1 {[%clk 0:01:14.7]} 21... Re8 {[%clk 0:00:57.9]} 22. Nd2 {[%clk
0:01:12]} 22... Rc2 {[%clk 0:00:47.5]} 23. Rfe1 {[%clk 0:00:56.9]} 23... Rxe1
{[%clk 0:00:46.7]} 24. Qa8+ {[%clk 0:00:18.6]} 24... Bf8 {[%clk 0:00:46]} 25.
Rxe1 {[%clk 0:00:08.2]} 25... Rxd2 {[%clk 0:00:46]} 26. Re8 {[%clk 0:00:05.7]}
26... Qd6 {[%clk 0:00:45.7]} 27. Qxa5 {[%clk 0:00:04.6]} 27... Qc6+ {[%clk
0:00:45]} 0-1

[Event "*** Titled Tuesday Blitz"]
[Site "Chess.com"]
[Date "2020.04.07"]
[Round "1"]
[White "ClockworkKubrick"]
[Black "Neimar24"]
[Result "0-1"]
[WhiteElo "2212"]
[BlackElo "2574"]
[TimeControl "180+1"]
[EndTime "13:06:34 PDT"]
[Termination "Neimar24 won by checkmate"]

1. e4 {[%clk 0:02:59.3]} 1... e6 {[%clk 0:02:59.6]} 2. d4 {[%clk 0:02:57.3]}
2... d5 {[%clk 0:02:59.9]} 3. Nd2 {[%clk 0:02:56.3]} 3... c5 {[%clk 0:02:58.1]}
4. Ngf3 {[%clk 0:02:55.9]} 4... cxd4 {[%clk 0:02:57.5]} 5. Nxd4 {[%clk 0:02:56]}
5... Nc6 {[%clk 0:02:57.3]} 6. Bb5 {[%clk 0:02:55.4]} 6... Bd7 {[%clk
0:02:56.9]} 7. Nxc6 {[%clk 0:02:51.5]} 7... bxc6 {[%clk 0:02:56.8]} 8. Ba4
{[%clk 0:02:50.5]} 8... Qc7 {[%clk 0:02:55.7]} 9. O-O {[%clk 0:02:49.9]} 9...
Bd6 {[%clk 0:02:55.4]} 10. c4 {[%clk 0:02:48.4]} 10... Bxh2+ {[%clk 0:02:54.5]}
11. Kh1 {[%clk 0:02:48.8]} 11... Bd6 {[%clk 0:02:52.6]} 12. cxd5 {[%clk
0:02:48.3]} 12... cxd5 {[%clk 0:02:52.3]} 13. exd5 {[%clk 0:02:48.3]} 13... exd5
{[%clk 0:02:51.9]} 14. Re1+ {[%clk 0:02:48]} 14... Ne7 {[%clk 0:02:51.3]} 15.
Bxd7+ {[%clk 0:02:45.9]} 15... Qxd7 {[%clk 0:02:50.3]} 16. Qh5 {[%clk
0:02:18.9]} 16... O-O {[%clk 0:02:47.4]} 17. Nf3 {[%clk 0:02:16.7]} 17... Qf5
{[%clk 0:02:43.5]} 18. Qxf5 {[%clk 0:02:04.2]} 18... Nxf5 {[%clk 0:02:43.5]} 19.
Bd2 {[%clk 0:01:57.8]} 19... Rfe8 {[%clk 0:02:35.4]} 20. Bc3 {[%clk 0:01:55.8]}
20... f6 {[%clk 0:02:28.7]} 21. Rxe8+ {[%clk 0:01:51.5]} 21... Rxe8 {[%clk
0:02:27.8]} 22. Rd1 {[%clk 0:01:52]} 22... Ne7 {[%clk 0:02:25.2]} 23. Nd4 {[%clk
0:01:40.7]} 23... Kf7 {[%clk 0:02:22.6]} 24. Nb5 {[%clk 0:01:39.6]} 24... Bc5
{[%clk 0:02:14]} 25. Bd4 {[%clk 0:01:38.9]} 25... Bxd4 {[%clk 0:01:46.1]} 26.
Nd6+ {[%clk 0:01:37.9]} 26... Kf8 {[%clk 0:01:42.5]} 27. Nxe8 {[%clk 0:01:38]}
27... Be5 {[%clk 0:01:42.3]} 28. Nxf6 {[%clk 0:01:19.1]} 28... Bxf6 {[%clk
0:01:41.2]} 29. Kg1 {[%clk 0:01:10.4]} 29... Bxb2 {[%clk 0:01:40.1]} 30. Rb1
{[%clk 0:01:09.2]} 30... Bc3 {[%clk 0:01:39.7]} 31. Rb7 {[%clk 0:01:08]} 31...
a5 {[%clk 0:01:39]} 32. Kf1 {[%clk 0:01:06.6]} 32... Kf7 {[%clk 0:01:35.1]} 33.
Ke2 {[%clk 0:01:06.7]} 33... Ke6 {[%clk 0:01:34.2]} 34. Kd3 {[%clk 0:01:06.8]}
34... d4 {[%clk 0:01:33.1]} 35. g4 {[%clk 0:01:04.2]} 35... Nc6 {[%clk
0:01:32.8]} 36. Rxg7 {[%clk 0:00:58.9]} 36... Nb4+ {[%clk 0:01:32.4]} 37. Ke2
{[%clk 0:00:55.3]} 37... d3+ {[%clk 0:01:32.2]} 38. Kd1 {[%clk 0:00:55.4]} 38...
Nxa2 {[%clk 0:01:31.4]} 39. Rxh7 {[%clk 0:00:54.4]} 39... Bb4 {[%clk 0:01:28.9]}
40. f4 {[%clk 0:00:49.4]} 40... Kd5 {[%clk 0:01:28.8]} 41. g5 {[%clk 0:00:48.4]}
41... Ke4 {[%clk 0:01:28.9]} 42. g6 {[%clk 0:00:47.5]} 42... Nc3+ {[%clk
0:01:27.8]} 43. Kc1 {[%clk 0:00:45.5]} 43... Nd5 {[%clk 0:01:25.8]} 44. g7
{[%clk 0:00:43]} 44... d2+ {[%clk 0:01:25.8]} 45. Kb2 {[%clk 0:00:38.2]} 45...
d1=Q {[%clk 0:01:20.7]} 46. g8=Q {[%clk 0:00:38.4]} 46... Bc3+ {[%clk 0:01:20]}
47. Ka3 {[%clk 0:00:37.9]} 47... Bb4+ {[%clk 0:01:18.2]} 48. Ka2 {[%clk
0:00:37]} 48... Qc2+ {[%clk 0:01:17.3]} 49. Ka1 {[%clk 0:00:35.6]} 49... Bc3#
{[%clk 0:01:16.8]} 0-1